[Event "14th BPB Limburg Open 2022"]
[Site "Maastricht"]
[Date "2022.06.06"]
[Round "7.12"]
[White "Suvorov, Alexander"]
[Black "Baselmans, Luuk"]
[Result "1-0"]
[ECO "E11"]
[WhiteElo "2365"]
[BlackElo "2233"]
[Annotator "TA"]
[PlyCount "67"]
[EventDate "2022.06.03"]
[EventType "swiss"]
[EventCountry "NED"]
[SourceTitle "playchess.com"]
[Source "ChessBase"]
[SourceQuality "1"]
[TimeControl "7200+15"]

{[%evp 16,67,39,31,59,49,68,66,77,85,87,83,98,85,85,87,109,91,197,191,218,215,207,222,214,212,197,211,232,224,260,242,255,239,235,239,341,325,347,275,249,281,276,250,391,380,427,414,607,593,737,730,822,602]} 1. d4 {[%emt 0:00:23]} e6 {[%emt 0:00:35]} 2. c4 {[%emt 0:00:59]} Nf6 {[%emt 0:00:07]} 3. Nf3 {[%emt 0:00:08]} Bb4+ {[%emt 0:00:52]} 4. Bd2 {[%emt 0:00:11]} a5 {[%emt 0:00:27]} 5. g3 {[%emt 0:00:12]} d6 {[%emt 0:03:09]} 6. Bg2 {[%emt 0:00:31]} Nc6 {[%emt 0:00:30]} 7. O-O {[%emt 0:01:43]} Bxd2 {[%emt 0:00:49]} 8. Qxd2 {[%emt 0:01:05]} O-O {[%emt 0:00:10]} 9. Nc3 {[%emt 0:00:48]} e5 {[%emt 0:00:21] E11: Bogo-Indian.} 10. dxe5 {[%emt 0:05:35]} dxe5 {[%emt 0:00:12]} 11. Rfd1 {[%emt 0:05:47] [#]} Bg4 $146 {[%emt 0:08:44] Black is now going downhill. White is slightly better.} ({Predecessor:} 11... Be6 12. Qe3 Qc8 13. Nd5 Bxd5 14. cxd5 Nb4 15. Qxe5 Re8 16. Qg5 h6 17. Qd2 Nbxd5 {1-0 (57) Ghaem Maghami,E (2533)-Sangma,R (2298) New Delhi 2019}) 12. Qe3 {[%emt 0:10:09]} Qe7 {[%emt 0:01:02]} 13. Nd5 {[%emt 0:13:08]} Nxd5 {[%emt 0:00:21]} 14. cxd5 {[%emt 0:00:25]} Bxf3 {[%emt 0:00:47]} 15. Qxf3 {[%emt 0:02:28]} Nd4 {[%emt 0:05:58]} 16. Qd3 {[%emt 0:04:22] [#] e3 is the strong threat.} Rfd8 {[%emt 0:05:53]} (16... g6 $16) 17. e3 $18 {[%emt 0:06:47]} Nc6 {[%emt 0:07:02]} 18. Qb3 {[%emt 0:09:42]} Nb4 {[%emt 0:08:22]} 19. a3 {[%emt 0:00:45]} Na6 {[%emt 0:00:07]} 20. Qxb7 {[%emt 0:01:04][%cal Od5d6] [#] Hoping for d6!} Qd6 {[%emt 0:00:59]} 21. Qc6 {[%emt 0:20:44]} Rab8 {[%emt 0:01:12]} 22. Qc3 {[%emt 0:03:37]} a4 {[%emt 0:03:03]} 23. Rac1 {[%emt 0:03:57]} Rb3 {[%emt 0:05:40]} 24. Qa5 {[%emt 0:02:17] And now Rc6 would win.} Rxb2 {[%emt 0:01:22]} 25. Qxa4 {[%emt 0:01:04]} Ra2 {[%emt 0:03:12]} (25... Rb6 $142 26. Bf1 h6) 26. Rc3 {[%emt 0:12:39] Black must now prevent Qb3.} Qf6 {[%emt 0:08:00]} 27. Rc2 {[%emt 0:01:20] Active counter play!} Rxc2 {[%emt 0:01:32]} 28. Qxc2 {[%emt 0:00:02]} Qd6 {[%emt 0:00:44]} 29. Qc3 {[%emt 0:01:43]} f5 {[%emt 0:01:08]} (29... c6 {was called for.} 30. Bf3 c5) 30. Rc1 {[%emt 0:01:53]} Kf8 {[%emt 0:02:54]} 31. Bf1 {[%emt 0:01:02]} Ra8 {[%emt 0:00:45]} (31... Nb8 $142 32. Qxc7 Qxc7 33. Rxc7 Nd7) 32. Qc6 {[%emt 0:03:55] White is clearly winning.} Ra7 {[%emt 0:01:27]} 33. Qa4 {[%emt 0:02:14]} Qb6 {[%emt 0:05:38]} 34. Rc6 {[%emt 0:00:25] Weighted Error Value: White=0.04 (flawless) /Black=0.39} 1-0

[Event "14th BPB Limburg Open 2022"]
[Site "Maastricht"]
[Date "2022.06.06"]
[Round "7.13"]
[White "Kopylov, Daniel"]
[Black "Arndt, Stefan"]
[Result "1-0"]
[ECO "C95"]
[WhiteElo "2292"]
[BlackElo "2138"]
[Annotator "TA"]
[PlyCount "61"]
[EventDate "2022.06.03"]
[EventType "swiss"]
[EventCountry "NED"]
[SourceTitle "playchess.com"]
[Source "ChessBase"]
[SourceQuality "1"]
[TimeControl "7200+15"]

{[%evp 24,61,26,18,14,8,16,8,14,7,4,0,0,0,22,37,11,0,0,0,549,555,545,551,714,649,631,654,606,468,724,506,510,503,708,722,695,683,649,535]} 1. e4 {[%emt 0:02:40]} e5 {[%emt 0:00:17]} 2. Nf3 {[%emt 0:00:27]} Nc6 {[%emt 0:00:07]} 3. Bb5 {[%emt 0:00:30]} a6 {[%emt 0:00:14]} 4. Ba4 {[%emt 0:00:18]} Nf6 {[%emt 0:00:28]} 5. O-O {[%emt 0:00:32]} Be7 {[%emt 0:00:14]} 6. Re1 {[%emt 0:00:15]} b5 {[%emt 0:00:11]} 7. Bb3 {[%emt 0:00:09]} d6 {[%emt 0:00:09]} 8. c3 {[%emt 0:00:28]} O-O {[%emt 0:00:31]} 9. h3 {[%emt 0:00:07]} Nb8 {[%emt 0:00:28]} 10. d4 {[%emt 0:01:25]} Nbd7 {[%emt 0:00:09]} 11. Nbd2 {[%emt 0:00:14][%cal Bb1d2,Bd2f1,Bf1g3][%mdl 32]} Bb7 {[%emt 0:00:24]} 12. Bc2 {[%emt 0:00:20]} c5 {[%emt 0:00:29]} 13. d5 $1 {[%emt 0:02:39] 13.d5 scores better than 13.Nf1.} c4 {[%emt 0:01:05] C95: Closed Ruy Lopez: Breyer Variation with 10 d4.} 14. Nf1 {[%emt 0:03:23]} Qc7 {[%emt 0:00:20]} 15. Ng3 {[%emt 0:00:12]} g6 {[%emt 0:00:13] Prevents Nf5. The position is equal.} 16. Bh6 {[%emt 0:03:37]} Rfb8 {[%emt 0:01:11]} 17. Qd2 {[%emt 0:00:29][%cal Og3f5]} a5 {[%emt 0:00:11]} 18. Nh4 {[%emt 0:05:57][%cal Bf3h4,Bh4f5,Bf5d6][%mdl 32]} b4 {[%emt 0:05:11] [#]} 19. Nhf5 $1 {[%emt 0:03:47]} Bd8 {[%emt 0:08:29] [#]} 20. Ba4 $146 {[%emt 0:12:31]} ({Predecessor:} 20. f4 Ba6 21. fxe5 Nxe5 22. Nd4 bxc3 23. bxc3 Rb2 24. Rf1 Rab8 25. Kh1 Bb5 26. Qf4 {0-1 (37) Hansen,E (2606)-Nasuta,G (2512) Chess.com INT 2021}) 20... Nc5 {[%emt 0:05:01]} 21. Bf8 {[%emt 0:02:43]} Nxa4 $4 {[%emt 0:00:17][%mdl 8192]} (21... gxf5 $2 {[#]} 22. Qh6 $1 Ne6 23. Nxf5 $1 $18) (21... Ne8 $1 $11 {and Black stays safe.} 22. Bxe8 Kxf8) 22. Bxd6 $18 {[%emt 0:02:55] White is clearly winning.} Qxd6 {[%emt 0:19:04]} 23. Nxd6 {[%emt 0:00:37]} Ba6 {[%emt 0:00:04]} 24. Qh6 {[%emt 0:03:16][%cal Og3f5] Strongly threatening Ngf5!} Be7 {[%emt 0:00:42] [#]} 25. Ngf5 {[%emt 0:03:45][%csl Gf5][%cal Rh6g7]} Bf8 {[%emt 0:00:28] Inhibits Qg7+.} 26. Qg5 {[%emt 0:00:22]} Nd7 {[%emt 0:02:31]} (26... Ne8 $142 27. Nxe8 Rxe8) 27. Re3 {[%emt 0:07:08] Threatens to win with Ne7+.} f6 {[%emt 0:00:41]} 28. Nh6+ {[%emt 0:01:53]} Bxh6 {[%emt 0:00:14]} 29. Qxh6 {[%emt 0:00:14][%cal Od6f5] White threatens Nf5! and mate.} Ra7 {[%emt 0:02:57]} 30. Rg3 {[%emt 0:03:31][%cal Og3g6] White wants to mate with Rxg6+!} Ndc5 {[%emt 0:02:50]} 31. h4 {[%emt 0:02:10] Weighted Error Value: White=0.34/Black=0.41} 1-0

[Event "14th BPB Limburg Open 2022"]
[Site "Maastricht"]
[Date "2022.06.06"]
[Round "7.14"]
[White "Slagboom, Leandro"]
[Black "Van Foreest, Machteld"]
[Result "0-1"]
[ECO "A27"]
[WhiteElo "1997"]
[BlackElo "2287"]
[Annotator "TA"]
[PlyCount "42"]
[EventDate "2022.06.03"]
[EventType "swiss"]
[EventCountry "NED"]
[SourceTitle "playchess.com"]
[Source "ChessBase"]
[SourceQuality "1"]
[TimeControl "7200+15"]

{[%evp 12,42,-12,-4,-3,-5,-6,0,0,-16,0,-20,-9,-33,-34,-35,-33,-94,-104,-188,-202,-292,-281,-566,-560,-602,-594,-677,-493,-754,-217,-195,-132]} 1. c4 {[%emt 2:00:30]} e5 {[%emt 2:00:30][%cal Be7e5,Be5e4][%mdl 32]} 2. Nc3 {[%emt 0:00:15]} f5 {[%emt 0:00:15]} 3. Nf3 {[%emt 0:00:15]} Nc6 {[%emt 0:00:15]} 4. d4 {[%emt 0:00:15]} e4 {[%emt 0:00:15]} 5. d5 {[%emt 0:00:15]} exf3 {[%emt 0:00:15]} 6. dxc6 {[%emt 0:00:15]} fxg2 {[%emt 0:00:15]} 7. cxd7+ {[%emt 0:00:15]} (7. Bxg2 {keeps more tension.} dxc6 8. Qxd8+ Kxd8 9. Bf4) 7... Qxd7 {[%emt 0:00:15] A27: English Opening: Three Knights Variation.} 8. Bxg2 {[%emt 0:00:15]} Qxd1+ {[%emt 0:00:15]} 9. Kxd1 {[%emt 0:00:15]} c6 {[%emt 0:00:15] Against Nb5. The position is equal.} 10. b3 {[%emt 0:00:15] [#]} Be6 $146 {[%emt 0:00:15][%cal Bc8e6,Be6f7,Bf7h5][%mdl 32]} ({Predecessor:} 10... Nf6 11. e3 Kf7 12. Bb2 Be6 13. Ke2 Bd6 14. Rad1 Rad8 15. Nb1 Ne4 16. Bxe4 fxe4 {1-0 (35) Dimitrov,R (2332)-Kovacevic,B (2482) Zadar 2007}) 11. e3 {[%emt 0:00:15]} O-O-O+ {[%emt 0:00:15]} 12. Ke2 {[%emt 0:00:15]} Nf6 {[%emt 0:00:15]} 13. Bb2 {[%emt 0:00:15]} Bd6 {[%emt 0:00:15]} 14. f4 {[%emt 0:00:15]} (14. Rad1 $15) 14... Bf7 {[%emt 0:00:15]} 15. Bh3 {[%emt 0:00:15]} (15. Rad1 $17) 15... Bh5+ $19 {[%emt 0:00:15]} 16. Kf2 {[%emt 0:00:15]} (16. Kf1 $142 Bg4 17. Kg2) 16... g6 {[%emt 0:00:15]} 17. Kg3 $2 {[%emt 0:00:15] [#]} (17. Rhe1) 17... Rhe8 {[%emt 0:00:15]} 18. Rae1 {[%emt 0:00:15]} Bb4 {[%emt 0:00:15]} 19. Kh4 {[%emt 0:00:15]} Rd3 {[%emt 0:00:15]} 20. e4 {[%emt 0:00:15]} (20. Nd5 $142 Nxd5 21. cxd5) 20... Be7 $2 {[%emt 0:00:15] [#]} (20... Bc5 {( -> ...Bf2+)} 21. Nd1 Bxd1 22. Bxf5+ Nd7 23. Bxd7+ Kxd7) 21. exf5 {[%emt 0:00:15]} Nd7+ {[%emt 0:00:15] Weighted Error Value: White=0.76/Black=0.58} (21... Kd8 $19 22. Rxe7 (22. fxg6 {is a self mate.} Ne4+ 23. Kxh5 Rxh3+ 24. Kg4 Nf2+ 25. Kf5 Rf8+ 26. Ke6 Rf6+ 27. Ke5 Nd3+ 28. Kd4 Bc5+ 29. Ke4 Rxf4#) 22... Kxe7 23. Re1+ Kf7 24. Rxe8 Kxe8 25. fxg6 hxg6) 0-1